[Event "Live Chess"]
[Site "Chess.com"]
[Date "2024.06.01"]
[Round "-"]
[White "Queensandpawns"]
[Black "upoe610"]
[Result "1-0"]
[WhiteElo "2381"]
[BlackElo "2213"]
[TimeControl "300"]
[EndTime "14:42:12 PDT"]
[Termination "Queensandpawns won by resignation"]

1. d4 {[%clk 0:04:57.9]} 1... Nf6 {[%clk 0:04:59]} 2. Nc3 {[%clk 0:04:57.8]}
2... d5 {[%clk 0:04:57.4]} 3. Bf4 {[%clk 0:04:57.4]} 3... c5 {[%clk 0:04:56.4]}
4. e3 {[%clk 0:04:56.5]} 4... e6 {[%clk 0:04:45]} 5. Nb5 {[%clk 0:04:55]} 5...
Na6 {[%clk 0:04:44]} 6. a4 {[%clk 0:04:54.3]} 6... cxd4 {[%clk 0:04:38]} 7. exd4
{[%clk 0:04:52.2]} 7... Be7 {[%clk 0:04:36.4]} 8. Nf3 {[%clk 0:04:50.6]} 8...
O-O {[%clk 0:04:35.4]} 9. c3 {[%clk 0:04:49.9]} 9... Bd7 {[%clk 0:04:32.4]} 10.
Bd3 {[%clk 0:04:49]} 10... Nh5 {[%clk 0:04:24.9]} 11. Be3 {[%clk 0:04:44.4]}
11... Nc7 {[%clk 0:04:20.7]} 12. Ne5 {[%clk 0:04:41]} 12... Nf6 {[%clk 0:04:16]}
13. g4 {[%clk 0:04:39.7]} 13... Nxb5 {[%clk 0:04:14.3]} 14. axb5 {[%clk
0:04:39.6]} 14... a6 {[%clk 0:04:11.3]} 15. g5 {[%clk 0:04:37.1]} 15... Ne4
{[%clk 0:04:08.6]} 16. Qg4 {[%clk 0:04:30.7]} 16... axb5 {[%clk 0:04:00.8]} 17.
Rxa8 {[%clk 0:04:20.7]} 17... Qxa8 {[%clk 0:03:58.4]} 18. Nxd7 {[%clk
0:04:19.8]} 18... Qa1+ {[%clk 0:03:56.6]} 19. Qd1 {[%clk 0:04:19.1]} 19... Qxb2
{[%clk 0:03:37.4]} 20. Nxf8 {[%clk 0:04:16.7]} 20... Qxc3+ {[%clk 0:03:33.6]}
21. Kf1 {[%clk 0:04:13.4]} 21... Bxf8 {[%clk 0:03:28.3]} 22. Qc2 {[%clk
0:04:12.7]} 22... Qa1+ {[%clk 0:03:25]} 23. Kg2 {[%clk 0:04:10.6]} 23... Qa3
{[%clk 0:03:16.5]} 24. Bxe4 {[%clk 0:04:09.1]} 24... dxe4 {[%clk 0:03:14.8]} 25.
Qxe4 {[%clk 0:04:09]} 25... g6 {[%clk 0:03:11.8]} 26. Rc1 {[%clk 0:04:07.8]} 1-0

[Event "Live Chess"]
[Site "Chess.com"]
[Date "2024.06.01"]
[Round "-"]
[White "Ferrarifan27"]
[Black "lateforthesky"]
[Result "1/2-1/2"]
[WhiteElo "2088"]
[BlackElo "2143"]
[TimeControl "300"]
[EndTime "14:42:15 PDT"]
[Termination "Game drawn by repetition"]

1. e4 {[%clk 0:04:53]} 1... c5 {[%clk 0:04:58.2]} 2. Nf3 {[%clk 0:04:51.5]} 2...
Nf6 {[%clk 0:04:57.8]} 3. Nc3 {[%clk 0:04:49.7]} 3... d6 {[%clk 0:04:54.2]} 4.
d4 {[%clk 0:04:44.7]} 4... cxd4 {[%clk 0:04:53.3]} 5. Nxd4 {[%clk 0:04:44.6]}
5... a6 {[%clk 0:04:51.4]} 6. Bg5 {[%clk 0:04:42.5]} 6... e6 {[%clk 0:04:50]} 7.
f4 {[%clk 0:04:40.7]} 7... Nc6 {[%clk 0:04:49]} 8. Nxc6 {[%clk 0:04:36.8]} 8...
bxc6 {[%clk 0:04:48.1]} 9. e5 {[%clk 0:04:35.6]} 9... h6 {[%clk 0:04:46.8]} 10.
Bh4 {[%clk 0:04:32.7]} 10... g5 {[%clk 0:04:42.5]} 11. fxg5 {[%clk 0:04:29.5]}
11... Nd5 {[%clk 0:04:41.5]} 12. Nxd5 {[%clk 0:04:27.3]} 12... exd5 {[%clk
0:04:39.4]} 13. exd6 {[%clk 0:04:25.5]} 13... hxg5 {[%clk 0:04:25.9]} 14. Qe2+
{[%clk 0:04:22]} 14... Be6 {[%clk 0:04:23.3]} 15. Bg3 {[%clk 0:04:19.7]} 15...
Bxd6 {[%clk 0:04:22.2]} 16. Bxd6 {[%clk 0:04:17.4]} 16... Qxd6 {[%clk
0:04:21.3]} 17. O-O-O {[%clk 0:04:13.2]} 17... Rxh2 {[%clk 0:04:14.1]} 18. Rxh2
{[%clk 0:04:11.8]} 18... Qxh2 {[%clk 0:04:13]} 19. Rd3 {[%clk 0:04:05.6]} 19...
Qf4+ {[%clk 0:04:07.5]} 20. Kb1 {[%clk 0:04:02.8]} 20... Rb8 {[%clk 0:03:47.3]}
21. Rf3 {[%clk 0:03:54.3]} 21... Qb4 {[%clk 0:03:44.3]} 22. Rb3 {[%clk 0:03:47]}
22... Qd6 {[%clk 0:03:41.4]} 23. Rxb8+ {[%clk 0:03:43.5]} 23... Qxb8 {[%clk
0:03:40.1]} 24. Qxa6 {[%clk 0:03:42.9]} 24... Qc7 {[%clk 0:03:19.4]} 25. Qe2
{[%clk 0:03:33]} 25... Kf8 {[%clk 0:03:15.5]} 26. a3 {[%clk 0:03:29]} 26... c5
{[%clk 0:03:11.4]} 27. Qd2 {[%clk 0:03:26.4]} 27... Qe7 {[%clk 0:03:07.8]} 28.
Bd3 {[%clk 0:03:21.2]} 28... Kg7 {[%clk 0:03:05.3]} 29. Qe1 {[%clk 0:03:06.4]}
29... Qf6 {[%clk 0:02:51.6]} 30. a4 {[%clk 0:02:46.6]} 30... c4 {[%clk
0:02:49.4]} 31. Bf1 {[%clk 0:02:42.7]} 31... d4 {[%clk 0:02:25.9]} 32. a5 {[%clk
0:02:41.2]} 32... Bd5 {[%clk 0:02:25]} 33. Qd1 {[%clk 0:02:32.9]} 33... Qf2
{[%clk 0:02:16.4]} 34. a6 {[%clk 0:02:26.1]} 34... f6 {[%clk 0:02:14.5]} 35. a7
{[%clk 0:02:22.1]} 35... d3 {[%clk 0:02:11.1]} 36. cxd3 {[%clk 0:02:19.8]} 36...
Qxa7 {[%clk 0:02:08.1]} 37. dxc4 {[%clk 0:02:18.7]} 37... Be4+ {[%clk
0:02:07.2]} 38. Bd3 {[%clk 0:02:12.3]} 38... Qd4 {[%clk 0:02:05.7]} 39. b3
{[%clk 0:01:45.5]} 39... Bxd3+ {[%clk 0:02:00.3]} 40. Ka2 {[%clk 0:01:43.3]}
40... Qc3 {[%clk 0:01:56.8]} 41. Qf3 {[%clk 0:01:31.8]} 41... Qc2+ {[%clk
0:01:35.1]} 42. Ka3 {[%clk 0:01:29.9]} 42... Bf5 {[%clk 0:01:29.2]} 43. g4
{[%clk 0:01:24.2]} 43... Be6 {[%clk 0:01:26.5]} 44. Qb7+ {[%clk 0:01:12.5]}
44... Bf7 {[%clk 0:01:25.2]} 45. Qd7 {[%clk 0:01:08.9]} 45... Qc3 {[%clk
0:01:17.5]} 46. Ka4 {[%clk 0:01:05]} 46... Qe5 {[%clk 0:01:02.1]} 47. b4 {[%clk
0:00:59.3]} 47... Kg6 {[%clk 0:00:57.8]} 48. Qd3+ {[%clk 0:00:56.1]} 48... f5
{[%clk 0:00:52.5]} 49. gxf5+ {[%clk 0:00:53.7]} 49... Qxf5 {[%clk 0:00:51.2]}
50. Qd6+ {[%clk 0:00:51.9]} 50... Kg7 {[%clk 0:00:47.7]} 51. Qd4+ {[%clk
0:00:50]} 51... Kh6 {[%clk 0:00:44.5]} 52. b5 {[%clk 0:00:45]} 52... g4 {[%clk
0:00:36.1]} 53. b6 {[%clk 0:00:37]} 53... Qc2+ {[%clk 0:00:30.6]} 54. Kb5 {[%clk
0:00:34.3]} 54... Qb3+ {[%clk 0:00:28.4]} 55. Kc5 {[%clk 0:00:28.9]} 55... g3
{[%clk 0:00:21.9]} 56. Qf6+ {[%clk 0:00:27.4]} 56... Bg6 {[%clk 0:00:19.8]} 57.
Qh4+ {[%clk 0:00:26.4]} 57... Kg7 {[%clk 0:00:18.7]} 58. Qe7+ {[%clk 0:00:25.5]}
58... Kh6 {[%clk 0:00:18]} 59. Qh4+ {[%clk 0:00:24.7]} 59... Kg7 {[%clk
0:00:17.4]} 60. Qe7+ {[%clk 0:00:23.7]} 60... Kh6 {[%clk 0:00:16.8]} 61. b7
{[%clk 0:00:22.7]} 61... g2 {[%clk 0:00:14.5]} 62. Qh4+ {[%clk 0:00:20]} 62...
Kg7 {[%clk 0:00:13.5]} 63. Qd4+ {[%clk 0:00:19]} 63... Kh6 {[%clk 0:00:12]} 64.
Qf4+ {[%clk 0:00:17.5]} 64... Kg7 {[%clk 0:00:11]} 65. Qe5+ {[%clk 0:00:13.4]}
65... Kh6 {[%clk 0:00:10]} 66. Qf4+ {[%clk 0:00:11.8]} 66... Kg7 {[%clk
0:00:09.2]} 67. Qd4+ {[%clk 0:00:10.5]} 67... Kh6 {[%clk 0:00:08.3]} 68. Qh4+
{[%clk 0:00:09.5]} 68... Kg7 {[%clk 0:00:07.5]} 69. Qe7+ {[%clk 0:00:08.3]}
69... Kh6 {[%clk 0:00:06.6]} 70. Qh4+ {[%clk 0:00:06.1]} 1/2-1/2

[Event "Live Chess"]
[Site "Chess.com"]
[Date "2024.06.01"]
[Round "-"]
[White "GrahamCuthbert"]
[Black "kylet1990"]
[Result "1-0"]
[WhiteElo "1024"]
[BlackElo "731"]
[TimeControl "300"]
[EndTime "14:42:16 PDT"]
[Termination "GrahamCuthbert won by resignation"]

1. d4 {[%clk 0:04:57.5]} 1... c6 {[%clk 0:04:58.2]} 2. Bf4 {[%clk 0:04:55]} 2...
d5 {[%clk 0:04:57.5]} 3. Nf3 {[%clk 0:04:52.9]} 3... Bf5 {[%clk 0:04:56.7]} 4.
e3 {[%clk 0:04:46.5]} 4... e6 {[%clk 0:04:55.9]} 5. Ne5 {[%clk 0:04:39]} 5...
Nd7 {[%clk 0:04:50.4]} 6. c4 {[%clk 0:04:32.4]} 6... Nxe5 {[%clk 0:04:39.4]} 7.
Bxe5 {[%clk 0:04:28.1]} 7... f6 {[%clk 0:04:37.5]} 8. Bg3 {[%clk 0:04:24.5]}
8... Bd6 {[%clk 0:04:31.9]} 9. cxd5 {[%clk 0:04:20.7]} 9... Bxg3 {[%clk
0:04:25.7]} 10. hxg3 {[%clk 0:04:19.1]} 10... Qxd5 {[%clk 0:04:23.6]} 11. Nc3
{[%clk 0:04:15]} 11... Qa5 {[%clk 0:04:17.3]} 12. Qb3 {[%clk 0:03:55.8]} 12...
O-O-O {[%clk 0:04:10.2]} 13. Bc4 {[%clk 0:03:40.1]} 13... e5 {[%clk 0:04:00.6]}
14. Be6+ {[%clk 0:03:23.8]} 14... Bxe6 {[%clk 0:03:55]} 15. Qxe6+ {[%clk
0:03:23.7]} 15... Kb8 {[%clk 0:03:52]} 16. dxe5 {[%clk 0:03:14.3]} 16... fxe5
{[%clk 0:03:47.7]} 17. Qxe5+ {[%clk 0:03:11.4]} 17... Ka8 {[%clk 0:03:44.7]} 18.
Qxa5 {[%clk 0:03:09.8]} 1-0

[Event "Live Chess"]
[Site "Chess.com"]
[Date "2024.06.01"]
[Round "-"]
[White "koekoekoe"]
[Black "GwaryTek"]
[Result "1-0"]
[WhiteElo "2010"]
[BlackElo "1904"]
[TimeControl "300"]
[EndTime "14:42:39 PDT"]
[Termination "koekoekoe won by resignation"]

1. d4 {[%clk 0:04:59.6]} 1... Nf6 {[%clk 0:04:57.5]} 2. Bf4 {[%clk 0:04:59.1]}
2... d6 {[%clk 0:04:55.1]} 3. e3 {[%clk 0:04:58.6]} 3... Nbd7 {[%clk 0:04:53.5]}
4. c4 {[%clk 0:04:58.1]} 4... e5 {[%clk 0:04:52.3]} 5. dxe5 {[%clk 0:04:57]}
5... dxe5 {[%clk 0:04:51.3]} 6. Bg3 {[%clk 0:04:54]} 6... Bb4+ {[%clk
0:04:38.1]} 7. Nc3 {[%clk 0:04:53.4]} 7... Bxc3+ {[%clk 0:04:29.1]} 8. bxc3
{[%clk 0:04:52.1]} 8... Qe7 {[%clk 0:04:29]} 9. Nf3 {[%clk 0:04:47.2]} 9... O-O
{[%clk 0:04:26.7]} 10. Be2 {[%clk 0:04:46.2]} 10... Re8 {[%clk 0:04:16.3]} 11.
O-O {[%clk 0:04:44.5]} 11... Qa3 {[%clk 0:04:08.3]} 12. Qb3 {[%clk 0:04:43]}
12... Qa6 {[%clk 0:03:52.9]} 13. Rfd1 {[%clk 0:04:34.9]} 13... Ne4 {[%clk
0:03:43.3]} 14. Qc2 {[%clk 0:04:19.7]} 14... Nxg3 {[%clk 0:03:37.5]} 15. hxg3
{[%clk 0:04:19.6]} 15... Nf6 {[%clk 0:03:32.6]} 16. Rab1 {[%clk 0:04:11.4]}
16... Qc6 {[%clk 0:03:25]} 17. Qb3 {[%clk 0:03:59.7]} 17... Bf5 {[%clk
0:03:07.7]} 18. Qxb7 {[%clk 0:03:53.2]} 18... Qe6 {[%clk 0:02:33.9]} 19. Rb2
{[%clk 0:03:41.1]} 19... Ng4 {[%clk 0:02:32.4]} 20. Nh2 {[%clk 0:03:20.5]} 20...
Nf6 {[%clk 0:02:03.1]} 21. Qxc7 {[%clk 0:03:10.2]} 21... h5 {[%clk 0:01:47.1]}
22. Nf3 {[%clk 0:02:45.4]} 22... Be4 {[%clk 0:01:14.1]} 23. Ng5 {[%clk
0:02:34.6]} 23... Qf5 {[%clk 0:00:42.6]} 24. Qxf7+ {[%clk 0:02:29.6]} 24... Kh8
{[%clk 0:00:41.9]} 25. Nxe4 {[%clk 0:02:10.2]} 25... Qxe4 {[%clk 0:00:30.5]} 26.
Bf3 {[%clk 0:02:02.5]} 26... Qf5 {[%clk 0:00:21]} 27. Bxa8 {[%clk 0:01:56.4]}
27... Rxa8 {[%clk 0:00:16]} 1-0

[Event "Live Chess"]
[Site "Chess.com"]
[Date "2024.06.01"]
[Round "-"]
[White "RichardABates"]
[Black "imchessive"]
[Result "1-0"]
[WhiteElo "2233"]
[BlackElo "1594"]
[TimeControl "300"]
[EndTime "14:43:07 PDT"]
[Termination "RichardABates won by resignation"]

1. d4 {[%clk 0:04:56.7]} 1... f5 {[%clk 0:04:58.7]} 2. g3 {[%clk 0:04:55.2]}
2... d6 {[%clk 0:04:57.7]} 3. Bg2 {[%clk 0:04:54.1]} 3... Nf6 {[%clk 0:04:56.9]}
4. c4 {[%clk 0:04:52.9]} 4... g6 {[%clk 0:04:56]} 5. Nc3 {[%clk 0:04:51.5]} 5...
c6 {[%clk 0:04:55.2]} 6. Bg5 {[%clk 0:04:47.9]} 6... Bg7 {[%clk 0:04:53.5]} 7.
h4 {[%clk 0:04:46.9]} 7... a5 {[%clk 0:04:51.6]} 8. h5 {[%clk 0:04:40.6]} 8...
Nxh5 {[%clk 0:04:46.7]} 9. Rxh5 {[%clk 0:04:38.9]} 9... gxh5 {[%clk 0:04:46.6]}
10. e3 {[%clk 0:04:38.1]} 10... O-O {[%clk 0:04:19.2]} 11. Qxh5 {[%clk 0:04:35]}
11... Qe8 {[%clk 0:04:15.6]} 12. Qh4 {[%clk 0:04:33.5]} 12... Be6 {[%clk
0:04:01.6]} 13. d5 {[%clk 0:04:28.2]} 13... cxd5 {[%clk 0:03:59.7]} 14. cxd5
{[%clk 0:04:19.8]} 14... Bd7 {[%clk 0:03:58]} 15. Nge2 {[%clk 0:04:16.8]} 15...
Na6 {[%clk 0:03:40.4]} 16. Bxe7 {[%clk 0:04:08.3]} 16... Rf7 {[%clk 0:03:36.6]}
17. Bxd6 {[%clk 0:04:07.1]} 17... Nb4 {[%clk 0:03:28.2]} 18. Bxb4 {[%clk
0:04:02.2]} 18... axb4 {[%clk 0:03:26.8]} 19. Qxb4 {[%clk 0:04:01]} 19... b5
{[%clk 0:02:52.9]} 20. d6 {[%clk 0:03:50.8]} 20... Rb8 {[%clk 0:02:45.9]} 21.
Nd5 {[%clk 0:03:48.9]} 21... Qe5 {[%clk 0:02:32.8]} 22. Nd4 {[%clk 0:03:07.2]}
22... Kh8 {[%clk 0:02:26.3]} 23. Kf1 {[%clk 0:03:02.1]} 23... Rc8 {[%clk
0:02:03.4]} 24. Rd1 {[%clk 0:02:53.1]} 24... Rc4 {[%clk 0:02:00.3]} 25. Qb3
{[%clk 0:02:29.3]} 25... Bc6 {[%clk 0:01:44.7]} 26. Nxc6 {[%clk 0:02:23.9]}
26... Rxc6 {[%clk 0:01:34.2]} 27. Qxb5 {[%clk 0:02:14.2]} 27... Rc2 {[%clk
0:01:28]} 28. d7 {[%clk 0:02:08.2]} 28... Rf8 {[%clk 0:01:14.3]} 29. Bf3 {[%clk
0:01:40.7]} 29... Rxb2 {[%clk 0:01:11.7]} 30. Qc5 {[%clk 0:01:36.5]} 30... Qb8
{[%clk 0:00:50]} 31. Nc7 {[%clk 0:01:26.6]} 31... Rb7 {[%clk 0:00:29.3]} 32.
Qxf8+ {[%clk 0:01:20.8]} 32... Qxf8 {[%clk 0:00:22.4]} 33. d8=Q {[%clk
0:01:18.1]} 33... Qxd8 {[%clk 0:00:16.9]} 34. Rxd8+ {[%clk 0:01:16.3]} 34... Bf8
{[%clk 0:00:16.8]} 35. Rxf8+ {[%clk 0:01:14.1]} 35... Kg7 {[%clk 0:00:16.7]} 36.
Ne6+ {[%clk 0:01:11.9]} 36... Kg6 {[%clk 0:00:14.9]} 37. Bxb7 {[%clk 0:01:10.2]}
1-0

[Event "Live Chess"]
[Site "Chess.com"]
[Date "2024.06.01"]
[Round "-"]
[White "AnotherOneBadPlayer"]
[Black "gmnorfolk"]
[Result "0-1"]
[WhiteElo "2198"]
[BlackElo "2099"]
[TimeControl "300"]
[EndTime "14:43:10 PDT"]
[Termination "gmnorfolk won by resignation"]

1. Nf3 {[%clk 0:04:57.2]} 1... Nf6 {[%clk 0:04:58.4]} 2. b3 {[%clk 0:04:54.9]}
2... g6 {[%clk 0:04:57.1]} 3. Bb2 {[%clk 0:04:53.8]} 3... Bg7 {[%clk 0:04:56.6]}
4. e3 {[%clk 0:04:51.5]} 4... O-O {[%clk 0:04:55.5]} 5. Be2 {[%clk 0:04:50.4]}
5... d5 {[%clk 0:04:54.8]} 6. O-O {[%clk 0:04:48.2]} 6... c5 {[%clk 0:04:54.4]}
7. d4 {[%clk 0:04:47.3]} 7... cxd4 {[%clk 0:04:49.4]} 8. Nxd4 {[%clk 0:04:46.4]}
8... Nc6 {[%clk 0:04:48.6]} 9. Nxc6 {[%clk 0:04:42.2]} 9... bxc6 {[%clk
0:04:47.5]} 10. Nd2 {[%clk 0:04:40.1]} 10... Bf5 {[%clk 0:04:46.2]} 11. Nf3
{[%clk 0:04:29.8]} 11... a5 {[%clk 0:04:43.4]} 12. a4 {[%clk 0:04:13.5]} 12...
c5 {[%clk 0:04:41.2]} 13. Bb5 {[%clk 0:04:01.6]} 13... Qb6 {[%clk 0:04:29.2]}
14. Qe2 {[%clk 0:03:37.2]} 14... Rfd8 {[%clk 0:04:22.2]} 15. Rad1 {[%clk
0:03:25.7]} 15... Rac8 {[%clk 0:04:20.2]} 16. c4 {[%clk 0:03:09.4]} 16... dxc4
{[%clk 0:04:14.4]} 17. Bxc4 {[%clk 0:02:52.2]} 17... Rxd1 {[%clk 0:04:02.8]} 18.
Rxd1 {[%clk 0:02:48.8]} 18... Rd8 {[%clk 0:04:02.4]} 19. Ng5 {[%clk 0:02:08.6]}
19... e6 {[%clk 0:03:54]} 20. e4 {[%clk 0:01:05.7]} 20... Rxd1+ {[%clk 0:03:51]}
21. Qxd1 {[%clk 0:01:04.4]} 21... Nxe4 {[%clk 0:03:50.4]} 22. Qd7 {[%clk
0:00:53]} 22... Nxg5 {[%clk 0:03:39.3]} 23. Qe8+ {[%clk 0:00:48.4]} 23... Bf8
{[%clk 0:03:36.3]} 24. Bf6 {[%clk 0:00:45.9]} 24... Qd6 {[%clk 0:03:16.3]} 25.
h4 {[%clk 0:00:38.4]} 25... Ne4 {[%clk 0:03:07.4]} 26. Bd8 {[%clk 0:00:31.1]}
26... h5 {[%clk 0:02:55.1]} 27. Bxa5 {[%clk 0:00:28.1]} 27... Qd4 {[%clk
0:02:49.1]} 28. Be1 {[%clk 0:00:21.7]} 28... Qd1 {[%clk 0:02:43.5]} 29. Kf1
{[%clk 0:00:13.3]} 29... Nd2+ {[%clk 0:02:41.3]} 30. Kg1 {[%clk 0:00:12.1]}
30... Qxe1+ {[%clk 0:02:40.3]} 31. Kh2 {[%clk 0:00:11.3]} 31... Qxf2 {[%clk
0:02:31.4]} 0-1

[Event "Live Chess"]
[Site "Chess.com"]
[Date "2024.06.01"]
[Round "-"]
[White "Delacorta"]
[Black "Duke_of_Bebington"]
[Result "1-0"]
[WhiteElo "1590"]
[BlackElo "1635"]
[TimeControl "300"]
[EndTime "14:43:25 PDT"]
[Termination "Delacorta won by checkmate"]

1. d4 {[%clk 0:04:57.5]} 1... d5 {[%clk 0:04:58.9]} 2. Nf3 {[%clk 0:04:55.3]}
2... Nf6 {[%clk 0:04:57.4]} 3. e3 {[%clk 0:04:53.1]} 3... Bf5 {[%clk 0:04:56.3]}
4. Bd3 {[%clk 0:04:51.5]} 4... Bxd3 {[%clk 0:04:54.5]} 5. cxd3 {[%clk
0:04:50.6]} 5... e6 {[%clk 0:04:48]} 6. Nbd2 {[%clk 0:04:49.6]} 6... c5 {[%clk
0:04:45.9]} 7. O-O {[%clk 0:04:42.1]} 7... Nc6 {[%clk 0:04:44.4]} 8. dxc5 {[%clk
0:04:35.4]} 8... Bxc5 {[%clk 0:04:43]} 9. d4 {[%clk 0:04:32.7]} 9... Bd6 {[%clk
0:04:42.5]} 10. b3 {[%clk 0:04:29.6]} 10... O-O {[%clk 0:04:39.9]} 11. Bb2
{[%clk 0:04:28.5]} 11... Rc8 {[%clk 0:04:34.7]} 12. Ne5 {[%clk 0:04:27]} 12...
Bxe5 {[%clk 0:04:28.6]} 13. dxe5 {[%clk 0:04:24.3]} 13... Nd7 {[%clk 0:04:26.8]}
14. f4 {[%clk 0:04:23.3]} 14... f6 {[%clk 0:04:23]} 15. exf6 {[%clk 0:04:18.3]}
15... Nxf6 {[%clk 0:04:20.7]} 16. Nf3 {[%clk 0:04:11.8]} 16... Qb6 {[%clk
0:04:17.8]} 17. Nd4 {[%clk 0:04:00.5]} 17... Ne4 {[%clk 0:04:12.7]} 18. Qe1
{[%clk 0:03:52.3]} 18... Nxd4 {[%clk 0:04:08.2]} 19. Bxd4 {[%clk 0:03:49.1]}
19... Qa6 {[%clk 0:03:57.1]} 20. Qh4 {[%clk 0:03:36.6]} 20... b6 {[%clk
0:03:54.3]} 21. Qe7 {[%clk 0:03:32.9]} 21... Rf7 {[%clk 0:03:36.2]} 22. Qxe6
{[%clk 0:03:28]} 22... Nc5 {[%clk 0:03:31]} 23. Bxc5 {[%clk 0:03:25.2]} 23...
Rxc5 {[%clk 0:03:26.9]} 24. Rac1 {[%clk 0:03:04.8]} 24... Qb7 {[%clk 0:03:25.1]}
25. Rxc5 {[%clk 0:03:01.4]} 25... bxc5 {[%clk 0:03:24.1]} 26. Rd1 {[%clk
0:02:56]} 26... Qd7 {[%clk 0:03:06.1]} 27. Qxd5 {[%clk 0:02:47.5]} 27... Qxd5
{[%clk 0:03:03.9]} 28. Rxd5 {[%clk 0:02:45.9]} 28... Rc7 {[%clk 0:03:01]} 29.
Kf2 {[%clk 0:02:42.4]} 29... Kf7 {[%clk 0:03:00.6]} 30. Ke2 {[%clk 0:02:39.6]}
30... h6 {[%clk 0:02:59.9]} 31. Kd3 {[%clk 0:02:38.5]} 31... Ke6 {[%clk
0:02:58.6]} 32. e4 {[%clk 0:02:32.5]} 32... c4+ {[%clk 0:02:47.1]} 33. bxc4
{[%clk 0:02:28.5]} 33... Rb7 {[%clk 0:02:45.8]} 34. Rb5 {[%clk 0:02:16.2]} 34...
Rd7+ {[%clk 0:02:41.9]} 35. Kc3 {[%clk 0:02:06.6]} 35... Rd1 {[%clk 0:02:40.1]}
36. Rb7 {[%clk 0:01:58.7]} 36... Kf6 {[%clk 0:02:32]} 37. Rxa7 {[%clk
0:01:51.5]} 37... Rg1 {[%clk 0:02:30.3]} 38. Ra6+ {[%clk 0:01:45.1]} 38... Kf7
{[%clk 0:02:27.4]} 39. a4 {[%clk 0:01:35]} 39... Rxg2 {[%clk 0:02:26.2]} 40. a5
{[%clk 0:01:33.9]} 40... Rxh2 {[%clk 0:02:24.2]} 41. Rb6 {[%clk 0:01:21.3]}
41... Rh3+ {[%clk 0:02:19.2]} 42. Kd4 {[%clk 0:01:18.4]} 42... g5 {[%clk
0:02:09.8]} 43. fxg5 {[%clk 0:01:15.4]} 43... hxg5 {[%clk 0:02:09.7]} 44. a6
{[%clk 0:00:54.5]} 44... Ra3 {[%clk 0:02:06.6]} 45. Ke5 {[%clk 0:00:34.8]} 45...
g4 {[%clk 0:02:04.8]} 46. Rb7+ {[%clk 0:00:29.8]} 46... Ke8 {[%clk 0:02:03.1]}
47. Ke6 {[%clk 0:00:19.4]} 47... Kf8 {[%clk 0:02:02]} 48. a7 {[%clk 0:00:17.6]}
48... g3 {[%clk 0:01:56.9]} 49. Rb8+ {[%clk 0:00:16.5]} 49... Kg7 {[%clk
0:01:54.8]} 50. a8=Q {[%clk 0:00:15.4]} 50... Rxa8 {[%clk 0:01:53.8]} 51. Rxa8
{[%clk 0:00:14.5]} 51... g2 {[%clk 0:01:53.4]} 52. Ra1 {[%clk 0:00:13.7]} 52...
Kh6 {[%clk 0:01:52.8]} 53. Rg1 {[%clk 0:00:13.4]} 53... Kg5 {[%clk 0:01:52.5]}
54. Rxg2+ {[%clk 0:00:12.7]} 54... Kf4 {[%clk 0:01:52.4]} 55. Rd2 {[%clk
0:00:11.3]} 55... Kxe4 {[%clk 0:01:52.3]} 56. Rd6 {[%clk 0:00:10.5]} 56... Ke3
{[%clk 0:01:51.4]} 57. c5 {[%clk 0:00:10.4]} 57... Ke2 {[%clk 0:01:50.1]} 58. c6
{[%clk 0:00:10.3]} 58... Kf3 {[%clk 0:01:49.8]} 59. c7 {[%clk 0:00:10.2]} 59...
Kg2 {[%clk 0:01:49.6]} 60. c8=Q {[%clk 0:00:09.4]} 60... Kg3 {[%clk 0:01:49.5]}
61. Qc4 {[%clk 0:00:08.1]} 61... Kf2 {[%clk 0:01:49.4]} 62. Rd3 {[%clk
0:00:07.5]} 62... Kg2 {[%clk 0:01:49.3]} 63. Qc2+ {[%clk 0:00:07]} 63... Kg1
{[%clk 0:01:48.6]} 64. Rd1# {[%clk 0:00:06.2]} 1-0

[Event "Live Chess"]
[Site "Chess.com"]
[Date "2024.06.01"]
[Round "-"]
[White "road2gm5000"]
[Black "Rusty_Bridges"]
[Result "0-1"]
[WhiteElo "1091"]
[BlackElo "1517"]
[TimeControl "300"]
[EndTime "14:43:30 PDT"]
[Termination "Rusty_Bridges won by resignation"]

1. e4 {[%clk 0:04:58.7]} 1... d6 {[%clk 0:04:56.3]} 2. d4 {[%clk 0:04:57.5]}
2... Nf6 {[%clk 0:04:54.9]} 3. Nc3 {[%clk 0:04:55.6]} 3... Nbd7 {[%clk
0:04:51.7]} 4. Nf3 {[%clk 0:04:54.6]} 4... e5 {[%clk 0:04:48.3]} 5. dxe5 {[%clk
0:04:53]} 5... dxe5 {[%clk 0:04:48.2]} 6. Be3 {[%clk 0:04:49.6]} 6... Bb4 {[%clk
0:04:47.3]} 7. Bc4 {[%clk 0:04:46.6]} 7... h6 {[%clk 0:04:45.2]} 8. Qd3 {[%clk
0:04:42.9]} 8... c6 {[%clk 0:04:42.1]} 9. O-O {[%clk 0:04:38.6]} 9... Qc7 {[%clk
0:04:36]} 10. Rad1 {[%clk 0:04:34.9]} 10... g5 {[%clk 0:04:33.1]} 11. Bxf7+
{[%clk 0:04:11.7]} 11... Kxf7 {[%clk 0:04:31.4]} 12. Bxg5 {[%clk 0:04:09.1]}
12... hxg5 {[%clk 0:04:00.2]} 13. Qc4+ {[%clk 0:04:03]} 13... Kg6 {[%clk
0:03:56.3]} 14. Qxb4 {[%clk 0:03:56.5]} 14... Nf8 {[%clk 0:03:34.5]} 15. Qe7
{[%clk 0:03:53.6]} 15... Qxe7 {[%clk 0:03:31.9]} 0-1

[Event "Live Chess"]
[Site "Chess.com"]
[Date "2024.06.01"]
[Round "-"]
[White "Queensandpawns"]
[Black "PughmanChess"]
[Result "1-0"]
[WhiteElo "2381"]
[BlackElo "1387"]
[TimeControl "300"]
[EndTime "14:43:30 PDT"]
[Termination "Queensandpawns won by resignation"]

1. e4 {[%clk 0:04:59.3]} 1... c6 {[%clk 0:04:57.6]} 2. d4 {[%clk 0:04:58.7]}
2... d5 {[%clk 0:04:57.1]} 3. Nd2 {[%clk 0:04:58.6]} 3... dxe4 {[%clk
0:04:55.5]} 4. Nxe4 {[%clk 0:04:58.5]} 4... Nf6 {[%clk 0:04:54.7]} 5. Ng5 {[%clk
0:04:58.4]} 5... h6 {[%clk 0:04:51.4]} 6. Nxf7 {[%clk 0:04:58]} 6... Kxf7 {[%clk
0:04:49.6]} 7. Nf3 {[%clk 0:04:57.9]} 7... Nbd7 {[%clk 0:04:41.9]} 8. Bd3 {[%clk
0:04:56.4]} 8... e6 {[%clk 0:04:35.6]} 9. O-O {[%clk 0:04:56.3]} 9... Bd6 {[%clk
0:04:34.5]} 10. Re1 {[%clk 0:04:55.7]} 10... Re8 {[%clk 0:04:30.9]} 11. Ne5+
{[%clk 0:04:55.6]} 11... Nxe5 {[%clk 0:04:29.2]} 12. dxe5 {[%clk 0:04:55.5]}
12... Qc7 {[%clk 0:04:17]} 13. exf6 {[%clk 0:04:52.1]} 13... Bxh2+ {[%clk
0:04:14.2]} 14. Kh1 {[%clk 0:04:51.4]} 14... gxf6 {[%clk 0:04:13.6]} 15. Qh5+
{[%clk 0:04:50]} 15... Ke7 {[%clk 0:04:11.6]} 16. Qxh2 {[%clk 0:04:49.6]} 16...
Qxh2+ {[%clk 0:04:10.5]} 17. Kxh2 {[%clk 0:04:48.9]} 1-0